fUST/lending_fUST_20251117
["ID","MTS","AMOUNT","RATE_DAILY","PERIOD"]
[394147485,1763323723675,-151.0,0.00026004,2]
[394147486,1763323723700,-151.0,0.00026004,7]
[394147487,1763323723723,-218.341788,0.00026004,7]
[394147488,1763323723748,-151.0,0.00026004,7]
[394147489,1763323723777,-151.0,0.00026004,7]
[394147490,1763323723803,-151.0,0.00026004,7]
[394147491,1763323723826,-162.629536,0.00026004,7]
[394147492,1763323723850,-162.629536,0.00026004,7]
[394147493,1763323723874,-162.629536,0.00026004,7]
[394147494,1763323723896,-500.0,0.00026012,2]
[394147495,1763323723923,-151.0,0.00026014,7]
[394147496,1763323723946,-151.0,0.00026014,7]
[394147497,1763323723970,-29061.267848,0.00026014,2]
[394147498,1763323723993,-151.0,0.00026139,2]
[394147499,1763323724016,-151.0,0.00026141,2]
[394147500,1763323724039,-151.0,0.00026276,2]
[394147501,1763323724061,-151.0,0.00026278,2]
[394147502,1763323724084,-206.54803364,0.00026413,2]
[394147503,1763323724208,-151.0,0.00026415,2]
[394147504,1763323724237,-151.0,0.00026552,2]
[394147505,1763323724261,-639.548536,0.00026676,2]
[394147506,1763323724284,-228.09116291,0.00026689,2]
[394147507,1763323724308,-500.0,0.00027108,2]
[394147508,1763323724333,-360.11281158,0.00027141,4]
[394147509,1763323724357,-204.0,0.0002718,2]
[394147510,1763323724381,-151.0,0.000278,16]
[394147511,1763323724404,-151.0,0.00028,14]
[394147512,1763323724428,-151.0,0.00028001,7]
[394147513,1763323724453,-151.0,0.00028001,7]
[394147514,1763323724476,-162.629536,0.00028001,7]
[394147515,1763323724500,-162.629536,0.00028001,7]
[394147516,1763323724522,-162.629536,0.00028001,7]
[394147517,1763323724545,-370.31932723,0.00028011,2]
[394147518,1763323724568,-151.0,0.0002802,7]
[394147519,1763323724592,-740.63865446,0.0002802,2]
[394147520,1763323724615,-151.0,0.0002803,7]
[394147521,1763323724637,-298.752764,0.0002803,7]
[394147522,1763323724664,-151.0,0.0002803,7]
[394147523,1763323724691,-129771.12887042,0.0002803,2]
[394147524,1763323724714,-370.31932723,0.0002808,2]
[394147525,1763323724740,-166.42,0.000281,7]
[394147526,1763323724766,-321.0,0.000281,14]
[394147527,1763323724790,-5054.38,0.000281,7]
[394147528,1763323724821,500.0,0.00025975,2]
[394147529,1763323724850,500.0,0.00025975,2]
[394147530,1763323724883,1496.49757398,0.00025975,2]
[394147531,1763323724912,500.0,0.00025975,2]
[394147532,1763323724941,500.0,0.00025975,2]
[394147533,1763323724969,500.0,0.00025975,2]
[394147534,1763323724997,365.81714279,0.00025975,2]
[394147535,1763323725024,500.0,0.00025975,2]
[394147536,1763323725053,500.0,0.00025975,2]
[394147537,1763323725082,500.0,0.00025975,2]
[394147538,1763323725110,500.0,0.00025975,2]
[394147539,1763323725142,1496.49757398,0.00025975,2]
[394147540,1763323725172,500.0,0.00025975,2]
[394147541,1763323725201,500.0,0.00025975,2]
[394147542,1763323725231,500.0,0.00025975,2]
[394147543,1763323725259,153.31544438,0.00025975,2]
[394147544,1763323725292,1496.49757398,0.00025975,2]
[394147545,1763323725320,500.0,0.00025975,2]
[394147546,1763323725349,500.0,0.00025975,2]
[394147547,1763323725377,500.0,0.00025975,2]
[394147548,1763323725407,500.0,0.00025975,2]
[394147549,1763323725446,1496.49757398,0.00025975,2]
[394147550,1763323725478,500.0,0.00025975,2]
[394147551,1763323725510,500.0,0.00025975,2]
[394147552,1763323725539,285.51562656,0.00025975,2]
[394147553,1763323725567,500.0,0.00025975,2]
[394147554,1763323725596,500.0,0.00025975,2]
[394147555,1763323725627,1496.49757398,0.00025975,2]
[394147556,1763323725661,556.83815227,0.00025975,2]
[394147557,1763323725691,500.0,0.00025975,2]
[394147558,1763323725721,500.0,0.00025975,2]
[394147559,1763323725755,1496.49757398,0.00025975,2]
[394147560,1763323725791,500.0,0.00025975,2]
[394147561,1763323725824,500.0,0.00025975,2]
[394147562,1763323725861,268.38346322,0.00025975,2]
[394147563,1763323725895,1496.49757398,0.00025975,2]
[394147564,1763323725929,500.0,0.00025975,2]
[394147565,1763323725958,500.0,0.00025975,2]
[394147566,1763323725985,162.629536,0.00025977,7]
[394147567,1763323726014,500.0,0.00025975,2]
[394147568,1763323726044,500.0,0.00025975,2]
[394147569,1763323726074,500.0,0.00025975,2]
[394147570,1763323726108,1496.49757398,0.00025975,2]
[394147571,1763323726140,500.0,0.00025975,2]
[394147572,1763323726171,500.0,0.00025975,2]
[394147573,1763323726201,500.0,0.00025975,2]
[394147574,1763323726235,1496.49757398,0.00025975,2]
[394147575,1763323726267,500.0,0.00025975,2]
[394147576,1763323726296,500.0,0.00025975,2]
[394147577,1763323726327,506.04489403,0.00025975,2]
[394147578,1763323726356,500.0,0.00025975,2]
[394147579,1763323726384,500.0,0.00025975,2]
[394147580,1763323726415,1496.49757398,0.00025975,2]
[394147581,1763323726443,500.0,0.00025975,2]
[394147582,1763323726472,500.0,0.00025975,2]
[394147583,1763323726506,500.0,0.00025975,2]
[394147584,1763323726551,500.0,0.00025975,2]
[394147585,1763323726586,1496.49757398,0.00025975,2]
[394147586,1763323726617,500.0,0.00025975,2]
[394147587,1763323726647,500.0,0.00025975,2]
[394147588,1763323726674,500.0,0.00025975,2]
[394147589,1763323726702,500.0,0.00025975,2]
[394147590,1763323726734,1496.49757398,0.00025975,2]
[394147591,1763323726766,500.0,0.00025975,2]
[394147592,1763323726794,500.0,0.00025975,2]
[394147593,1763323726824,500.0,0.00025975,2]
[394147594,1763323726853,500.0,0.00025975,2]
[394147595,1763323726885,1496.49757398,0.00025975,2]
[394147596,1763323726913,500.0,0.00025975,2]
[394147597,1763323726941,500.0,0.00025975,2]
[394147598,1763323726971,500.0,0.00025975,2]
[394147599,1763323727004,1496.49757398,0.00025975,2]
[394147600,1763323727034,500.0,0.00025975,2]
[394147601,1763323727064,500.0,0.00025975,2]
[394147602,1763323727100,1496.49757398,0.00025975,2]
[394147603,1763323727130,500.0,0.00025975,2]
[394147604,1763323727257,500.0,0.00025975,2]
[394147605,1763323727290,1496.49757398,0.00025975,2]
[394147606,1763323727320,162.629536,0.00025988,7]
[394147607,1763323727350,500.0,0.00025975,2]
[394147608,1763323727379,500.0,0.00025975,2]
[394147609,1763323727411,500.0,0.00025975,2]
[394147610,1763323727442,1496.49757398,0.00025975,2]
[394147611,1763323727471,500.0,0.00025975,2]
[394147612,1763323727503,1496.49757398,0.00025975,2]
[394147613,1763323727531,500.0,0.00025975,2]
[394147614,1763323727561,500.0,0.00025975,2]
[394147615,1763323727589,500.0,0.00025975,2]
[394147616,1763323727617,500.0,0.00025975,2]
[394147617,1763323727648,1496.49757398,0.00025975,2]
[394147618,1763323727687,500.0,0.00025975,2]
[394147619,1763323727719,1496.49757398,0.00025975,2]
[394147620,1763323727750,500.0,0.00025975,2]
[394147621,1763323727784,1496.49757398,0.00025975,2]
[394147622,1763323727814,500.0,0.00025975,2]
[394147623,1763323727842,500.0,0.00025975,2]
[394147624,1763323727871,500.0,0.00025975,2]
[394147625,1763323727905,1496.49757398,0.00025975,2]
[394147626,1763323727936,1496.49757398,0.00025975,2]
[394147627,1763323727971,1496.49757398,0.00025975,2]
[394147628,1763323727998,162.629536,0.00025993,7]
[394147629,1763323728029,1496.49757398,0.00025975,2]
[394147630,1763323728061,1496.49757398,0.00025975,2]
[394147631,1763323728095,1496.49757398,0.00025975,2]
[394147632,1763323728128,1496.49757398,0.00025975,2]
[394147633,1763323728161,1496.49757398,0.00025975,2]
[394147634,1763323728192,1496.49757398,0.00025975,2]
[394147635,1763323728223,1496.49757398,0.00025975,2]
[394147636,1763323728253,500.0,0.00025975,2]
[394147637,1763323728282,500.0,0.00025975,2]
[394147638,1763323728314,1496.49757398,0.00025975,2]
[394147639,1763323728344,1496.49757398,0.00025975,2]
[394147640,1763323728374,1496.49757398,0.00025975,2]
[394147641,1763323728403,1496.49757398,0.00025975,2]
[394147642,1763323728433,1496.49757398,0.00025975,2]
[394147643,1763323728461,500.0,0.00025975,2]
[394147644,1763323728495,1496.49757398,0.00025975,2]
[394147645,1763323728524,1496.49757398,0.00025975,2]
[394147646,1763323728553,1496.49757398,0.00025975,2]
[394147647,1763323728583,1496.49757398,0.00025975,2]
[394147648,1763323728612,162.629536,0.00026004,7]
[394147649,1763323728643,1496.49757398,0.00025975,2]
[394147650,1763323728681,1496.49757398,0.00025975,2]
[394147651,1763323728711,1496.49757398,0.00025975,2]
[394147652,1763323728745,1496.49757398,0.00025975,2]
[394147653,1763323728778,1496.49757398,0.00025975,2]
[394147654,1763323728809,162.629546,0.00028001,7]
[394147655,1763323728844,1496.49757398,0.00025975,2]
[394147656,1763323728875,1496.49757398,0.00025975,2]
[394147657,1763323728909,1496.49757398,0.00025975,2]
[394147658,1763323728941,1496.49757398,0.00025975,2]
[394147659,1763323728976,1496.49757398,0.00025975,2]
[394147660,1763323729012,2236.18,0.0002802,10]
[394147661,1763323729042,1496.49757398,0.00025975,2]
[394147662,1763323729073,1496.49757398,0.00025975,2]
[394147663,1763323729104,1496.49757398,0.00025975,2]
[394147664,1763323729137,1496.49757398,0.00025975,2]
[394147665,1763323729173,1496.49757398,0.00025975,2]
[394147666,1763323729205,1496.49757398,0.00025975,2]
[394147667,1763323729302,5000.0,0.000282,2]
[394147668,1763323738580,80685.01,0.000282,2]
[394147669,1763323743671,5000.0,0.000282,2]
[394147670,1763323751467,5000.0,0.000282,2]
[394147671,1763323754390,500.0,0.00025975,2]
[394147672,1763323754421,501.29117119,0.00025975,2]
[394147673,1763323754460,499.99999999,0.00025975,2]
[394147674,1763323756723,150.0,0.00028199,2]
[394147675,1763323757092,150.0,0.00028099,7]
[394147676,1763323757426,150.0,0.00028099,14]
[394147677,1763323757692,150.0,0.00028019,10]
[394147678,1763323757930,150.0,0.00027799,16]
[394147679,1763323758181,150.0,0.0002714,4]
[394147680,1763323766630,5000.0,0.000282,2]
[394147681,1763323774911,295.81601776,0.000282,2]
[394147682,1763323775586,500.0,0.00025975,2]
[394147683,1763323775623,500.0,0.00025975,2]
[394147684,1763323775921,500.0,0.00025975,2]
[394147685,1763323776240,500.0,0.00025975,2]
[394147686,1763323777000,500.0,0.00025975,2]
[394147687,1763323777308,500.0,0.00025975,2]
[394147688,1763323777616,500.0,0.00025975,2]
[394147689,1763323778649,500.0,0.00025975,2]
[394147690,1763323779018,500.0,0.00025975,2]
[394147691,1763323779427,500.0,0.00025975,2]
[394147692,1763323779723,500.0,0.00025975,2]
[394147693,1763323780089,500.0,0.00025975,2]
[394147694,1763323780391,500.0,0.00025975,2]
[394147695,1763323780694,500.0,0.00025975,2]
[394147696,1763323780986,500.0,0.00025975,2]
[394147697,1763323781262,500.0,0.00025975,2]
[394147698,1763323781293,500.0,0.00025975,2]
[394147699,1763323781330,500.0,0.00025975,2]
[394147700,1763323781360,500.0,0.00025975,2]
[394147701,1763323781389,300.00000001,0.00025975,2]
[394147702,1763323781427,500.0,0.00025975,2]
[394147703,1763323781458,500.0,0.00025975,2]
[394147704,1763323781514,500.0,0.00025975,2]
[394147705,1763323781549,500.0,0.00025975,2]
[394147706,1763323781579,500.0,0.00025975,2]
[394147707,1763323781614,500.0,0.00025975,2]
[394147708,1763323781684,500.0,0.00025975,2]
[394147709,1763323781716,500.0,0.00025975,2]
[394147710,1763323781790,500.0,0.00025975,2]
[394147711,1763323781827,500.0,0.00025975,2]
[394147712,1763323781857,500.0,0.00025975,2]
[394147713,1763323781889,500.0,0.00025975,2]
[394147714,1763323781970,1174.17501959,0.00025975,2]
[394147715,1763323782008,1174.17501959,0.00025975,2]
[394147716,1763323782041,1174.17501959,0.00025975,2]
[394147717,1763323782076,1174.17501959,0.00025975,2]
[394147718,1763323782107,1174.17501959,0.00025975,2]
[394147719,1763323782140,1174.17501959,0.00025975,2]
[394147720,1763323782169,1174.17501959,0.00025975,2]
[394147721,1763323782206,1174.17501959,0.00025975,2]
[394147722,1763323782405,1174.17501959,0.00025975,2]
[394147723,1763323782439,1174.17501959,0.00025975,2]
[394147724,1763323782472,1174.17501959,0.00025975,2]
[394147725,1763323782505,1174.17501959,0.00025975,2]
[394147726,1763323782538,1174.17501959,0.00025975,2]
[394147727,1763323782574,1174.17501959,0.00025975,2]
[394147728,1763323782606,1174.17501959,0.00025975,2]
[394147729,1763323782638,1174.17501959,0.00025975,2]
[394147730,1763323782669,1174.17501959,0.00025975,2]
[394147731,1763323782702,1174.17501959,0.00025975,2]
[394147732,1763323782734,1174.17501959,0.00025975,2]
[394147733,1763323782764,1174.17501959,0.00025975,2]
[394147734,1763323782798,1174.17501959,0.00025975,2]
[394147735,1763323782830,1174.17501959,0.00025975,2]
[394147736,1763323782864,1174.17501959,0.00025975,2]
[394147737,1763323782895,1174.17501959,0.00025975,2]
[394147738,1763323782927,1174.17501959,0.00025975,2]
[394147739,1763323782965,1174.17501959,0.00025975,2]
[394147740,1763323782996,1174.17501959,0.00025975,2]
[394147741,1763323783185,1174.17501959,0.00025975,2]
[394147742,1763323783281,1174.17501959,0.00025975,2]
[394147743,1763323790050,5000.0,0.000282,2]
[394147744,1763323791718,156.93427743,0.0002619,2]
[394147781,1763323831956,-2831.91553777,0.00024953,10]
[394147782,1763323831969,-2168.08446223,0.00024953,10]
[394147783,1763323831978,-500.0,0.00028204,2]
[394147784,1763323831987,-629.0,0.00028782,2]
[394147785,1763323831996,-110.20206517,0.00028782,2]
[394147786,1763323832008,-66.17993483,0.00028782,2]
[394147787,1763323832016,-304.515794,0.00028931,2]
[394147788,1763323832025,-231.0,0.0002918,2]
[394147789,1763323832035,-500.0,0.000293,2]
[394147790,1763323832044,-185.94292733,0.00029332,2]
[394147791,1763323832054,-206.8461058,0.00029332,2]
[394147792,1763323832064,-231.8703132,0.00030208,2]
[394147793,1763323832073,-220.41001144,0.00030396,2]
[394147794,1763323832083,-370.31932723,0.00031363,2]
[394147795,1763323832093,-151.0,0.000324,20]
[394147796,1763323832102,-500.0,0.00032462,7]
[394147797,1763323832112,-2114.76480596,0.00032687,2]
[394147798,1763323832126,-565.57138199,0.0003276,10]
[394147799,1763323832138,-1297.91861801,0.0003276,10]
[394147800,1763323832148,-1552.9,0.0003276,10]
[394147801,1763323832157,-147.04489134,0.0003276,10]
[394147802,1763323832169,-1110.56,0.0003276,10]
[394147803,1763323832184,-36.48510866,0.0003276,10]
[394147804,1763323832194,-1078.41,0.0003276,10]
[394147805,1763323832203,-15264.44046243,0.0003277,2]
[394147828,1763323837931,-1668.75000003,0.00024953,10]
[394147831,1763323837942,-653.5749005,0.00024953,10]
[394147836,1763323837985,-2677.67509947,0.00024953,10]
[394147838,1763323837994,-317701.75271792,0.0003277,2]
[394147841,1763323838005,-500.52213394,0.0003277,2]
[394147843,1763323838016,-4776.28806406,0.0003277,2]
[394147845,1763323838027,-8650.87735042,0.0003277,2]
[394147847,1763323838038,-8921.39536417,0.0003277,2]
[394147849,1763323838049,-5828.81562136,0.0003277,2]
[394147851,1763323838061,-38598.76366877,0.0003277,2]
[394147991,1763323840050,-105944.87030073,0.0003277,2]
[394147992,1763323840063,-5035.1610539,0.0003277,2]
[394147993,1763323840103,-3937.498,0.0003277,2]
[394148043,1763323843223,-18038.62901733,0.0003277,2]
[394148045,1763323843233,-158.93856675,0.00032787,2]
[394148047,1763323843243,-347.83623846,0.00032787,2]
[394148049,1763323843252,-626.10522923,0.00032787,2]
[394148051,1763323843261,-1113.07596308,0.00032787,2]
[394148053,1763323843271,-740.63865446,0.0003286,2]
[394148055,1763323843280,-11588.34948714,0.0003287,2]
[394148057,1763323843291,-307.33164302,0.0003287,2]
[394148339,1763323846162,-67012.31886984,0.0003287,2]
[394148342,1763323846172,-500.0,0.0003293,7]
[394148344,1763323846182,-639.548536,0.00033165,2]
[394148346,1763323846192,-272.66452311,0.000332,117]
[394148348,1763323846201,-1228.33,0.000332,14]
[394148350,1763323846211,-166.42,0.000333,7]
[394148352,1763323846220,-243.84064969,0.00033393,2]
[394148354,1763323846229,-272.66452308,0.00033423,117]
[394148356,1763323846239,-500.0,0.00033433,7]
[394148358,1763323846249,-153.46722381,0.00033531,2]
[394148360,1763323846259,-1739.18119231,0.00033951,2]
[394148362,1763323846268,-370.31932723,0.0003429,2]
[394148364,1763323846278,-500.0,0.00034295,7]
[394148366,1763323846288,-162.0,0.00035,120]
[394148368,1763323846298,-500.0,0.0003513,30]
[394148370,1763323846308,-151.0,0.00035305,7]
[394148372,1763323846318,-500.0,0.00035878,30]
[394148374,1763323846327,-158.0,0.00036,30]
[394148376,1763323846337,-166.0,0.00036,30]
[394148378,1763323846347,-282.48169937,0.00036261,2]
[394148380,1763323846357,-334.6972692,0.00036474,2]
[394148383,1763323846367,-372.32299044,0.00036474,2]
[394148385,1763323846376,-500.0,0.00036975,30]
[394148387,1763323846386,-158.0,0.00037397,30]
[394148389,1763323846396,-1228.33,0.000374,14]
[394148404,1763323846527,-151.30332686,0.00038015,2]
[394148406,1763323846543,-501.65392186,0.00038019,14]
[394148408,1763323846553,-500.0,0.00038019,14]
[394148410,1763323846563,-151.39428571,0.00038073,5]
[394148413,1763323846572,-150.0,0.00038073,5]
[394148415,1763323846583,-500.0,0.00038073,5]
[394148416,1763323846592,-370.31932723,0.00038078,3]
[394148418,1763323846602,-55000.0,0.00038088,20]
[394148420,1763323846611,-55.81079353,0.00038092,20]
[394148423,1763323846623,-94.18920647,0.00038092,20]
[394148425,1763323846632,-150.0,0.00038092,2]
[394148427,1763323846641,-171324.10581384,0.00038092,7]
[394148429,1763323846651,-825.53330116,0.00038092,7]
[394148431,1763323846660,-151.0,0.00038092,31]
[394148433,1763323846670,-2000.0,0.00038092,20]
[394148434,1763323846680,-288.9,0.000381,30]
[394148436,1763323846690,-4929.86,0.000381,14]
[394148438,1763323846700,-1439.01079509,0.00038219,4]
[394148440,1763323846711,-500.0,0.00038259,30]
[394148443,1763323846723,-500.0,0.00038596,30]
[394148445,1763323846732,-300.0,0.00038621,5]
[394148446,1763323846742,-1000.0,0.00038621,5]
[394148448,1763323846751,-2114.76480594,0.00038642,2]
[394148451,1763323846761,-370.31932723,0.0003887,3]
[394148453,1763323846771,-9942.60270114,0.0003888,30]
[394148455,1763323846781,-1110.95798169,0.0003888,3]
[394148456,1763323846791,-131477.98179231,0.0003889,15]
[394148458,1763323846805,-303.05066118,0.00039168,5]
[394148461,1763323846818,-1500.0,0.00039168,5]
[394148463,1763323846827,-162.0,0.000392,120]
[394148465,1763323846838,-244.76214416,0.00039482,2]
[394148467,1763323846847,-272.27761277,0.00039482,2]
[394148468,1763323846856,-639.548536,0.00039654,2]
[394148470,1763323846865,-1660.21177146,0.00039716,5]
[394148472,1763323846875,-5000.0,0.00040035,4]
[394148474,1763323846884,-1228.33,0.000401,14]
[394148476,1763323846894,-385.76,0.00041259,7]
[394148479,1763323846904,-206.5772051,0.00041944,4]
[394148481,1763323846914,-719.64708263,0.00042,120]
[394148482,1763323846924,-288.9,0.00042,30]
[394148484,1763323846934,-200.0,0.00042083,7]
[394148487,1763323846943,-1683.7,0.00043097,7]
[394148489,1763323846953,-304.515794,0.00043397,2]
[394148490,1763323846962,-162.0,0.000434,120]
[394148493,1763323846972,-272.66452308,0.00043768,120]
[394148494,1763323846982,-388.66,0.00043809,7]
[394148497,1763323846991,-199.0,0.00044109,30]
[394148499,1763323847001,-4929.86,0.000442,14]
[394148501,1763323847010,-384.0,0.0004441,7]
[394148503,1763323847020,-2114.76480594,0.00044598,28]
[394148505,1763323847029,-160.0,0.00045053,3]
[394148506,1763323847039,-22540.76,0.00045179,7]
[394148508,1763323847049,-150.0,0.000452,10]
[394148511,1763323847058,-199.0,0.00045479,30]
[394148513,1763323847068,-370.31932723,0.00045519,3]
[394148515,1763323847078,-500.0,0.00045539,60]
[394148516,1763323847087,-250.0,0.00045748,10]
[394148519,1763323847097,-166.42,0.000458,14]
[394148520,1763323847106,-3028.77,0.00045843,7]
[394148523,1763323847117,-639.548536,0.00046143,2]
[394148524,1763323847126,-350.0,0.00046296,10]
[394148527,1763323847136,-1228.33,0.000463,14]
[394148528,1763323847146,-705.55,0.00046344,2]
[394148530,1763323847155,-500.0,0.00046504,60]
[394148533,1763323847165,-180.0,0.00046544,7]
[394148535,1763323847175,-450.0,0.00046844,10]
[394148537,1763323847184,-301.90183387,0.00046849,30]
[394148539,1763323847194,-158.0,0.00047121,90]
[394148540,1763323847208,-594.4,0.00047273,7]
[394148543,1763323847217,-162.0,0.000476,120]
[394148544,1763323847229,-288.9,0.000476,30]
[394148547,1763323847239,-200.0,0.00047947,7]
[394148548,1763323847249,-500.0,0.00048012,60]
[394148550,1763323847258,-500.0,0.00048247,60]
[394148552,1763323847268,-500.0,0.00048644,60]
[394148554,1763323847277,-59082.12,0.00048796,7]
[394148556,1763323847287,-165.3315576,0.00049096,30]
[394148559,1763323847297,-800.0,0.00049099,60]
[394148561,1763323847311,-4929.86,0.000491,14]
[394148562,1763323847321,-370.31932723,0.00049305,4]
[394148564,1763323847330,-500.0,0.00049315,2]
[394148566,1763323847340,-500.0,0.00049315,120]
[394148568,1763323847350,-236.00000003,0.00049315,120]
[394148570,1763323847361,-500.0,0.00049315,2]
[394148573,1763323847371,-500.0,0.00049315,120]
[394148574,1763323847380,-500.0,0.00049315,2]
[394148576,1763323847390,-500.0,0.00049315,7]
[394148577,1763323847399,-160.173842,0.00049315,2]
[394148578,1763323847409,-500.0,0.00049315,10]
[394148579,1763323847418,-500.0,0.00049315,120]
[394148580,1763323847428,-532.93,0.00049315,7]
[394148581,1763323847438,-500.0,0.00049315,2]
[394148582,1763323847448,-778.75,0.00049315,2]
[394148583,1763323847459,-570.1845588,0.00049315,2]
[394148584,1763323847468,-1000.0,0.00049315,2]
[394148585,1763323847480,-4817.08,0.00049315,3]
[394148586,1763323847490,-2901.37,0.00049315,120]
[394148587,1763323847499,-502.32,0.00049315,120]
[394148588,1763323847509,-500.0,0.00049315,14]
[394148589,1763323847519,-1360.92,0.00049315,7]
[394148590,1763323847530,-3383.58,0.00049315,2]
[394148591,1763323847539,-1224.35,0.00049315,7]
[394148592,1763323847549,-501.38656683,0.00049315,7]
[394148593,1763323847559,-1674.943415,0.0004934,21]
[394148594,1763323847568,-1000.0,0.0004936,21]
[394148595,1763323847578,-1000.0,0.0004938,21]
[394148596,1763323847589,-1182.77842,0.0004938,21]
[394148597,1763323847598,-150.0,0.000494,120]
[394148598,1763323847608,-1000.0,0.000494,21]
[394148599,1763323847618,-1000.0,0.000494,21]
[394148600,1763323847627,-196.833173,0.000494,2]
[394148601,1763323847637,-101396.070804,0.0004944,30]
[394148617,1763324172671,-727.79055537,0.00025,2]
[394148618,1763324184094,150.0,0.0002589,2]
[394148619,1763324190933,-177.0,0.0002789,2]
[394148620,1763324190957,-206.48039651,0.00028104,2]
[394148621,1763324190981,-257.7909,0.00028104,2]
[394148622,1763324191007,-400.59295362,0.00028761,2]
[394148623,1763324191029,-2149.0,0.00029463,2]
[394148624,1763324191052,-398.13210073,0.00029523,4]
[394148625,1763324191077,-204.0,0.0002989,2]
[394148626,1763324241877,5000.0,0.0003,2]
[394148627,1763324264529,5000.0,0.0003,2]
[394148628,1763324287182,5000.0,0.0003,2]
[394148629,1763324311991,5000.0,0.0003,2]
[394148630,1763324334277,1207.00364914,0.0003,2]
[394148632,1763324495246,400.59295362,0.000275,2]
[394148633,1763324497808,150.0,0.0002589,2]
[394148634,1763324515104,-177.0,0.0002789,2]
[394148635,1763324515127,-204.0,0.0002989,2]
[394148636,1763324515148,-2026.894033,0.0003,2]
[394148637,1763324526168,5000.0,0.000275,2]
[394148638,1763324548265,5000.0,0.000275,2]
[394148639,1763324570461,5000.0,0.000275,2]
[394148641,1763324592772,5000.0,0.000275,2]
[394148642,1763324616001,480.79350979,0.000275,2]
[394148643,1763324645221,216.68123857,0.000275,2]
[394148645,1763324800136,-216.68123857,0.00030089,2]
[394148646,1763324811599,150.0,0.0002589,2]
[394148648,1763324873411,3451.93229802,0.00025,5]
[394148649,1763324873442,24272.20944463,0.00025,5]
[394148650,1763324889005,8984.7059013,0.000125,2]
[394148651,1763324895812,1012.34990204,0.00015,2]
[394148652,1763324905361,181.65661849,0.0002,2]
[394148653,1763324907599,14821.28757817,0.00017,2]
[394148654,1763324907623,17337.24844066,0.00017,2]
[394148655,1763324911866,591.14159213,0.000149,2]
[394148657,1763324916375,214.45562998,0.00016,2]
[394148658,1763324918453,565.969422,0.00013699,2]
[394148659,1763324919021,2444.28680419,0.0001,2]
[394148660,1763324949736,-565.969422,0.00020187,2]
[394148661,1763324949761,-300.0,0.00024141,2]
[394148662,1763324949783,-93174.98469064,0.00024142,2]
[394148663,1763324949808,-4391.7,0.0002464,10]
[394148664,1763324949831,-24214.99024644,0.0002465,2]
[394148665,1763324949856,-16751.38427814,0.00024774,2]
[394148666,1763324949879,-594.6454439,0.00024999,2]
[394148667,1763324949904,-500.0,0.00024999,2]
[394148668,1763324949928,-563.03381137,0.00024999,2]
[394148669,1763324949953,-500.0,0.00024999,2]
[394148670,1763324949981,-500.0,0.00024999,2]
[394148671,1763324950009,-500.0,0.00024999,2]
[394148672,1763324950034,-500.0,0.00024999,2]
[394148673,1763324950058,-500.0,0.00024999,2]
[394148674,1763324950081,-576.2378647,0.00024999,2]
[394148675,1763324950106,-500.0,0.00024999,2]
[394148676,1763324950137,-500.0,0.00024999,2]
[394148677,1763324950163,-500.0,0.00024999,2]
[394148678,1763324950195,-500.0,0.00024999,2]